fUST/lending_fUST_20240704
["ID","MTS","AMOUNT","RATE_DAILY","PERIOD"]
[331127689,1720097443941,-500.0,0.00014118,2]
[331127690,1720097443950,-11493.78,0.00014119,2]
[331127691,1720097443960,-609.92,0.00014119,2]
[331127692,1720097443969,-500.0,0.0001412,2]
[331127693,1720097443978,-6746.5974955,0.0001412,2]
[331127694,1720097443995,-3014.8725045,0.0001412,2]
[331127695,1720097444005,-472.1004442,0.0001412,2]
[331127696,1720097444111,-521.55,0.00013843,2]
[331127697,1720097444120,-521.55,0.00014117,2]
[331127698,1720097444130,-59.9795558,0.0001412,2]
[331127699,1720097444140,-165.33981446,0.0001412,2]
[331127766,1720097449120,-500.0,0.00013842,2]
[331127767,1720097449129,-522.47134949,0.00013842,2]
[331127768,1720097449138,-500.0,0.0001385,2]
[331127769,1720097449148,-334.66018554,0.0001412,2]
[331127770,1720097449157,-973.25,0.0001412,2]
[331127771,1720097449166,-500.0,0.0001412,2]
[331127772,1720097449177,-500.0,0.0001412,2]
[331127773,1720097449186,-511.28,0.00014121,2]
[331127774,1720097449196,-500.0,0.00014121,2]
[331127775,1720097449205,-503.8,0.00014121,2]
[331127776,1720097449215,-296.47946959,0.00014121,2]
[331127777,1720097449224,-500.0,0.00014121,2]
[331127778,1720097449233,-500.0,0.00014121,2]
[331127779,1720097449244,-500.0,0.00014124,2]
[331127780,1720097449253,-500.0,0.00014124,2]
[331127781,1720097449263,-5541.45,0.00014124,2]
[331127782,1720097449273,-5310.56,0.00014124,2]
[331127783,1720097449282,-1033.2,0.00014124,2]
[331127784,1720097449292,-601.3,0.00014127,2]
[331127785,1720097449306,-500.0,0.00014128,2]
[331127786,1720097449315,-500.0,0.00014128,2]
[331127787,1720097449324,-505.38102229,0.00014128,2]
[331127788,1720097449333,-500.0,0.00014128,2]
[331127789,1720097449344,-500.0,0.00014128,2]
[331127790,1720097449354,-650.59,0.00014128,2]
[331127791,1720097449363,-500.0,0.00014128,2]
[331127792,1720097449372,-500.0,0.00014128,2]
[331127793,1720097449381,-736.85,0.00014128,2]
[331127794,1720097449390,-500.0,0.00014128,2]
[331127795,1720097449400,-757.88,0.00014128,2]
[331127796,1720097449409,-592.39,0.00014128,2]
[331127797,1720097449418,-500.0,0.00014128,2]
[331127798,1720097449429,-500.0,0.00014128,2]
[331127799,1720097449439,-140.3356616,0.00014128,2]
[331127803,1720097560389,154.86836189,9.999e-05,2]
[331127804,1720097577723,776.67023249,9.999e-05,2]
[331127806,1720097631910,157.67667827,9.999e-05,2]
[331127820,1720097890820,5000.0,0.00025,120]
[331127836,1720098317564,-649.36276674,0.00013581,2]
[331127837,1720098317586,-503.87132651,0.00013742,2]
[331127838,1720098317609,-300.0,0.00013831,2]
[331127839,1720098317631,-300.0,0.00013831,2]
[331127840,1720098317654,-7815.59954867,0.00013831,2]
[331127841,1720098317676,-7815.59954867,0.00013832,2]
[331127842,1720098317698,-7815.59954867,0.00013834,2]
[331127843,1720098317720,-500.0,0.00013839,2]
[331127844,1720098317744,-632.95,0.00013839,2]
[331127845,1720098317927,-500.0,0.0001384,2]
[331127846,1720098317950,-500.0,0.0001384,2]
[331127847,1720098317971,-500.0,0.0001384,2]
[331127848,1720098317999,-2527.34,0.0001384,2]
[331127849,1720098318019,-1035.91,0.0001384,2]
[331127850,1720098318039,-500.0,0.0001384,2]
[331127851,1720098318061,-500.0,0.0001384,2]
[331127852,1720098318082,-500.0,0.0001384,2]
[331127853,1720098318103,-576.86066059,0.0001384,2]
[331127854,1720098318125,-500.0,0.0001384,2]
[331127855,1720098318149,-196.90950363,0.0001384,2]
[331127856,1720098318171,-500.0,0.0001384,2]
[331127857,1720098318195,-13403.12,0.0001384,2]
[331127858,1720098318217,-1592.19,0.0001384,2]
[331127859,1720098318240,-500.0,0.0001384,2]
[331127860,1720098318262,-500.0,0.0001384,2]
[331127861,1720098318284,-2360.51,0.0001384,2]
[331127862,1720098318308,-1363.83,0.0001384,2]
[331127863,1720098318329,-500.0,0.0001384,2]
[331127864,1720098318349,-783.28,0.0001384,2]
[331127865,1720098318369,-500.0,0.0001384,2]
[331127866,1720098318390,-500.0,0.0001384,2]
[331127867,1720098318410,-500.0,0.0001384,2]
[331127868,1720098318430,-500.0,0.0001384,2]
[331127869,1720098318452,-1790.4,0.0001384,2]
[331127870,1720098318472,-872.14,0.0001384,2]
[331127871,1720098318500,-1170.45,0.0001384,2]
[331127872,1720098318528,-2371.09,0.0001384,2]
[331127873,1720098318550,-1238.21,0.0001384,2]
[331127874,1720098318573,-16783.69619654,0.00013841,2]
[331127875,1720098318595,-500.0,0.00013841,2]
[331127876,1720098318616,-500.0,0.00013841,2]
[331127877,1720098318638,-500.0,0.00013841,2]
[331127878,1720098318659,-802.59,0.00013841,2]
[331127879,1720098318682,-500.0,0.00013841,2]
[331127880,1720098318704,-500.0,0.00013841,2]
[331127881,1720098318725,-679.39,0.00013841,2]
[331127882,1720098318755,-500.0,0.00013841,2]
[331127883,1720098318776,-692.45,0.00013841,2]
[331127884,1720098318796,-500.0,0.00013841,2]
[331127885,1720098318817,-500.0,0.00013841,2]
[331127886,1720098318838,-500.0,0.00013841,2]
[331127887,1720098318859,-500.0,0.00013841,2]
[331127888,1720098318881,-523.31,0.00013841,2]
[331127889,1720098318902,-500.0,0.00013841,2]
[331127890,1720098318922,-500.0,0.00013841,2]
[331127891,1720098318943,-801.75,0.00013841,2]
[331127892,1720098318963,-161.1009383,0.00013841,2]
[331127893,1720098318989,-500.0,0.00013841,2]
[331127894,1720098319009,-500.0,0.00013841,2]
[331127895,1720098319030,-500.0,0.00013841,2]
[331127896,1720098319050,-500.0,0.00013841,2]
[331127897,1720098319069,-285.66684403,0.00013841,2]
[331127898,1720098319091,-500.0,0.00013841,2]
[331127899,1720098319111,-880.65,0.00013841,2]
[331127900,1720098319133,-500.0,0.00013841,2]
[331127901,1720098319154,-735.66,0.00013841,2]
[331127902,1720098319174,-500.0,0.00013841,2]
[331127903,1720098319194,-500.0,0.00013841,2]
[331127904,1720098319214,-500.0,0.00013841,2]
[331127905,1720098319236,-500.0,0.00013841,2]
[331127906,1720098319262,-500.0,0.00013841,2]
[331127907,1720098319284,-1021.44,0.00013841,2]
[331127908,1720098319306,-500.0,0.00013841,2]
[331127909,1720098319330,-4253.91,0.00013841,2]
[331127910,1720098319351,-500.0,0.00013841,2]
[331127911,1720098319380,-500.0,0.00013841,2]
[331127912,1720098319407,-500.0,0.00013841,2]
[331127913,1720098319429,-500.0,0.00013841,2]
[331127914,1720098319451,-9155.09,0.00013841,2]
[331127915,1720098319474,-9155.09,0.00013841,2]
[331127916,1720098319500,-500.0,0.00013841,2]
[331127917,1720098319528,-1026.58,0.00013841,2]
[331127918,1720098319549,-947.68,0.00013841,2]
[331127919,1720098319572,-508.57,0.00013841,2]
[331127920,1720098319596,-4389.97,0.00013841,2]
[331127921,1720098319618,-500.0,0.00013841,2]
[331127922,1720098319639,-500.0,0.00013841,2]
[331127923,1720098319659,-508.21476531,0.00013841,2]
[331127924,1720098319680,-500.0,0.00013841,2]
[331127925,1720098319700,-709.57,0.00013842,2]
[331127926,1720098319720,-486.02565195,0.00013842,2]
[331127927,1720098319741,-500.0,0.00013842,2]
[331127928,1720098319763,-619.45,0.00013842,2]
[331127929,1720098319783,-500.0,0.00013842,2]
[331127930,1720098319804,-500.0,0.00013842,2]
[331127931,1720098319826,-500.0,0.00013842,2]
[331127932,1720098319851,-500.0,0.00013842,2]
[331127933,1720098319872,-500.0,0.00013842,2]
[331127934,1720098319893,-500.0,0.00013842,2]
[331127935,1720098319913,-500.0,0.00013842,2]
[331127936,1720098319934,-500.0,0.00013842,2]
[331127937,1720098319957,-500.0,0.00013842,2]
[331127938,1720098319978,-500.0,0.00013842,2]
[331127939,1720098320001,-514.79414028,0.00013842,2]
[331127940,1720098320022,-500.0,0.00013842,2]
[331127941,1720098320043,-502.30772631,0.00013842,2]
[331127942,1720098320064,-500.0,0.00013842,2]
[331127943,1720098320086,-500.0,0.00013842,2]
[331127944,1720098320107,-500.0,0.00013842,2]
[331127945,1720098320129,-500.0,0.00013842,2]
[331127946,1720098320151,-500.0,0.00013842,2]
[331127947,1720098320171,-500.0,0.00013842,2]
[331127948,1720098320192,-504.62409649,0.00013842,2]
[331127949,1720098320213,-500.0,0.00013842,2]
[331127950,1720098320234,-500.0,0.00013842,2]
[331127951,1720098320256,-500.0,0.00013842,2]
[331127952,1720098320277,-500.0,0.00013842,2]
[331127953,1720098320298,-500.0,0.00013842,2]
[331127954,1720098320318,-500.0,0.00013842,2]
[331127955,1720098320341,-929.28,0.00013842,2]
[331127956,1720098320361,-500.0,0.00013842,2]
[331127957,1720098320383,-568.38722603,0.00013842,2]
[331127958,1720098320403,-624.63,0.00013842,2]
[331127959,1720098320425,-500.0,0.00013842,2]
[331127960,1720098320445,-500.0,0.00013842,2]
[331127961,1720098320465,-500.0,0.00013842,2]
[331127962,1720098320486,-500.0,0.00013842,2]
[331127963,1720098320511,-634.71,0.00013842,2]
[331127964,1720098320536,-401.37770729,0.00013842,2]
[331127965,1720098320558,-500.0,0.00013842,2]
[331127966,1720098320580,-500.0,0.00013842,2]
[331127967,1720098320600,-513.89317114,0.00013842,2]
[331127968,1720098320622,-188.04326466,0.00013842,2]
[331127969,1720098320643,-500.0,0.00013842,2]
[331127970,1720098320663,-500.0,0.00013842,2]
[331127971,1720098320683,-500.0,0.00013842,2]
[331127972,1720098320704,-500.0,0.00013842,2]
[331127973,1720098320723,-500.0,0.00013842,2]
[331127974,1720098320872,-500.0,0.00013842,2]
[331127975,1720098320893,-500.0,0.00013842,2]
[331127976,1720098320913,-500.0,0.00013842,2]
[331127977,1720098320935,-500.0,0.00013842,2]
[331127978,1720098320955,-505.14767051,0.00013842,2]
[331127979,1720098320975,-500.0,0.00013842,2]
[331127980,1720098321000,-500.0,0.00013842,2]
[331127981,1720098321021,-500.0,0.00013842,2]
[331127982,1720098321040,-500.0,0.00013842,2]
[331127983,1720098321065,-367.40365598,0.00013842,2]
[331127984,1720098321084,-500.0,0.00013842,2]
[331127985,1720098321104,-500.0,0.00013842,2]
[331127986,1720098321125,-500.0,0.00013842,2]
[331127987,1720098321146,-500.0,0.00013842,2]
[331127988,1720098321166,-500.0,0.00013842,2]
[331127989,1720098321187,-500.0,0.00013842,2]
[331127990,1720098321209,-500.0,0.00013842,2]
[331127991,1720098321229,-512.93308563,0.00013842,2]
[331127992,1720098321256,-531.84144102,0.00013842,2]
[331127993,1720098321276,-512.34659134,0.00013842,2]
[331127994,1720098321296,-500.0,0.00013842,2]
[331127995,1720098321317,-520.42877987,0.00013842,2]
[331127996,1720098321338,-504.05409318,0.00013842,2]
[331127997,1720098321359,-500.0,0.00013842,2]
[331127998,1720098321379,-500.0,0.00013842,2]
[331127999,1720098321398,-515.3552227,0.00013842,2]
[331128000,1720098321418,-500.0,0.00013842,2]
[331128001,1720098321438,-500.0,0.00013842,2]
[331128002,1720098321458,-500.0,0.00013842,2]
[331128003,1720098321478,-500.0,0.00013842,2]
[331128004,1720098321502,-500.0,0.00013842,2]
[331128005,1720098321525,-509.86622538,0.00013842,2]
[331128006,1720098321546,-528.87528941,0.00013842,2]
[331128007,1720098321568,-500.0,0.00013842,2]
[331128008,1720098321588,-500.0,0.00013842,2]
[331128009,1720098321609,-500.0,0.00013842,2]
[331128010,1720098321631,-2131.83,0.00013842,2]
[331128011,1720098321652,-234.79331317,0.00013842,2]
[331128021,1720098511734,334.1,0.00025,120]
[331128025,1720098571549,-560.18719159,0.000135,3]
[331128026,1720098571653,-840.70312029,0.000135,3]
[331128091,1720098634158,-2568.18441221,0.000135,3]
[331128131,1720098640123,-1117.49922265,0.000135,3]
[331128132,1720098640136,-1232.7609245,0.000135,3]
[331128133,1720098640289,-516.6151856,0.000135,3]
[331128135,1720098640302,-1239.24055542,0.000135,3]
[331128150,1720098643292,-1590.81969511,0.000135,3]
[331128154,1720098643302,-403.0970612,0.00013747,2]
[331128158,1720098643311,-300.0,0.00013836,2]
[331128161,1720098643321,-300.0,0.00013836,2]
[331128165,1720098643331,-450.25079984,0.00013836,2]
[331128169,1720098643340,-6643.25961637,0.00013837,2]
[331128173,1720098643349,-159.82322146,0.00013838,2]
[331128176,1720098643358,-1525.85,0.00013839,2]
[331128179,1720098643368,-2262.15,0.00013839,2]
[331128182,1720098643376,-823.13,0.00013839,2]
[331128185,1720098643386,-141.09766336,0.00013839,2]
[331128202,1720098643487,-358.90233664,0.00013839,2]
[331128204,1720098643501,-78.49710181,0.00013839,2]
[331128245,1720098644122,-1041.50543224,0.00013839,2]
[331128247,1720098644134,-681.42746595,0.00013839,2]
[331128248,1720098644144,-2359.57,0.00013839,2]
[331128249,1720098644153,-1231.58,0.00013839,2]
[331128250,1720098644163,-500.0,0.00013839,2]
[331128251,1720098644172,-500.0,0.00013839,2]
[331128252,1720098644182,-1019.2,0.00013839,2]
[331128253,1720098644192,-642.61162663,0.00013839,2]
[331128254,1720098644201,-2086.31260391,0.00013839,2]
[331128255,1720098644213,-289.89676959,0.00013839,2]
[331128328,1720098648922,-305.47,0.00013839,2]
[331128329,1720098648935,-1543.6006265,0.00013839,2]
[331128330,1720098648944,-46.1422745,0.0001384,2]
[331128331,1720098649660,-633.8577255,0.0001384,2]
[331128332,1720098649670,-500.0,0.0001384,2]
[331128333,1720098649680,-500.0,0.0001384,2]
[331128334,1720098649689,-500.0,0.0001384,2]
[331128335,1720098649698,-593.64,0.0001384,2]
[331128336,1720098649709,-769.14,0.0001384,2]
[331128337,1720098649720,-500.0,0.0001384,2]
[331128338,1720098649729,-500.0,0.0001384,2]
[331128339,1720098649738,-500.0,0.0001384,2]
[331128340,1720098649751,-500.0,0.0001384,2]
[331128341,1720098649761,-500.0,0.0001384,2]
[331128342,1720098649770,-500.0,0.0001384,2]
[331128343,1720098649780,-492.02435946,0.0001384,2]
[331128344,1720098649790,-705.01,0.0001384,2]
[331128345,1720098649799,-500.0,0.0001384,2]
[331128346,1720098649810,-500.0,0.0001384,2]
[331128347,1720098649819,-500.0,0.0001384,2]
[331128348,1720098649828,-500.0,0.0001384,2]
[331128349,1720098649838,-500.0,0.0001384,2]
[331128350,1720098649848,-651.09,0.0001384,2]
[331128351,1720098649857,-500.0,0.0001384,2]
[331128352,1720098649867,-331.82006483,0.0001384,2]
[331128353,1720098649876,-500.0,0.0001384,2]
[331128354,1720098649886,-983.8,0.0001384,2]
[331128355,1720098649895,-500.0,0.0001384,2]
[331128356,1720098649904,-908.19,0.0001384,2]
[331128357,1720098649914,-500.0,0.0001384,2]
[331128358,1720098649923,-4207.06,0.0001384,2]
[331128359,1720098649932,-500.0,0.0001384,2]
[331128360,1720098649941,-150.65275712,0.0001384,2]
[331128362,1720098705710,155.14185773,9.999e-05,2]
[331128367,1720098876801,155.46825677,9.999e-05,2]
[331128368,1720098912020,-852.47782903,0.00013741,2]
[331128369,1720098912040,-500.0,0.000138,2]
[331128370,1720098912064,-269.01731951,0.000138,2]
[331128371,1720098912084,-300.0,0.0001383,2]
[331128372,1720098912104,-300.0,0.0001383,2]
[331128373,1720098912126,-7599.37342334,0.00013831,2]
[331128374,1720098912148,-2179.13142812,0.00013837,2]
[331128375,1720098916595,309.6439095,9.999e-05,2]
[331128401,1720099581267,192.47028923,9.999e-05,2]
[331128402,1720099605082,156.0,0.00025,120]
[331128516,1720099833238,-250.0,0.00012804,2]
[331128518,1720099833248,-596.00483926,0.00013731,2]
[331128520,1720099833258,-1024.21570712,0.00013736,2]
[331128522,1720099833267,-668.67730428,0.0001374,2]
[331128526,1720099833277,-1024.21570708,0.00013806,2]
[331128529,1720099833286,-300.0,0.00013826,2]
[331128532,1720099833295,-300.0,0.00013826,2]
[331128534,1720099833304,-1536.88644226,0.00013827,2]
[331128537,1720099833316,-9949.66726784,0.00013827,2]
[331128539,1720099833325,-6857.46658548,0.00013828,2]
[331128601,1720099839240,-4629.08712462,0.00013828,2]
[331128603,1720099839251,-158.80505934,0.00013829,2]
[331128605,1720099839261,-500.0,0.00013829,2]
[331128606,1720099839271,-364.04299557,0.00013829,2]
[331128608,1720099839285,-386.63495302,0.00013829,2]
[331128609,1720099839295,-500.0,0.00013829,2]
[331128611,1720099839305,-500.0,0.00013829,2]
[331128613,1720099839316,-161.4499704,0.00013829,2]
[331128615,1720099839326,-447.78042228,0.00013829,2]
[331128617,1720099839336,-500.0,0.00013829,2]
[331128619,1720099839346,-500.0,0.00013829,2]
[331128620,1720099839356,-500.0,0.00013829,2]
[331128621,1720099839366,-500.0,0.00013829,2]
[331128622,1720099839376,-500.0,0.00013829,2]
[331128623,1720099839386,-500.0,0.00013829,2]
[331128624,1720099839397,-500.0,0.00013829,2]
[331128625,1720099839408,-11486.5537101,0.0001383,2]
[331128626,1720099839419,-500.0,0.00013831,2]
[331128627,1720099839428,-761.26,0.00013831,2]
[331128628,1720099839439,-2846.79,0.00013831,2]
[331128629,1720099839449,-500.0,0.00013831,2]
[331128630,1720099839459,-808.62,0.00013831,2]
[331128631,1720099839470,-15569.92,0.00013831,2]
[331128632,1720099839480,-11486.5537101,0.00013832,2]
[331128633,1720099839489,-8710.78765071,0.00013835,2]
[331128634,1720099839499,-1828.79,0.00013835,2]
[331128635,1720099839509,-2846.66,0.00013835,2]
[331128636,1720099839519,-947.3,0.00013835,2]
[331128637,1720099839529,-500.0,0.00013835,2]
[331128638,1720099839539,-500.0,0.00013835,2]
[331128639,1720099839549,-2038.08,0.00013835,2]
[331128640,1720099839558,-2641.63,0.00013835,2]
[331128641,1720099839568,-1431.99,0.00013835,2]
[331128642,1720099839578,-500.0,0.00013835,2]
[331128643,1720099839588,-500.0,0.00013835,2]
[331128644,1720099839597,-1157.32,0.00013835,2]
[331128645,1720099839607,-500.0,0.00013835,2]
[331128646,1720099839616,-4824.14,0.00013835,2]
[331128647,1720099839626,-1078.95,0.00013836,2]
[331128649,1720099839637,-500.0,0.00013836,2]
[331128651,1720099839647,-1500.84,0.00013836,2]
[331128653,1720099839657,-500.0,0.00013836,2]
[331128655,1720099839667,-500.0,0.00013836,2]
[331128657,1720099839677,-953.85,0.00013836,2]
[331128659,1720099839689,-1278.95,0.00013836,2]
[331128661,1720099839698,-500.0,0.00013836,2]
[331128663,1720099839708,-500.0,0.00013836,2]
[331128665,1720099839717,-500.0,0.00013836,2]
[331128667,1720099839731,-500.0,0.00013836,2]
[331128669,1720099839743,-500.0,0.00013836,2]
[331128671,1720099839754,-500.0,0.00013836,2]
[331128673,1720099839763,-500.0,0.00013836,2]
[331128675,1720099839773,-500.0,0.00013836,2]
[331128677,1720099839783,-500.0,0.00013836,2]
[331128679,1720099839794,-500.0,0.00013836,2]
[331128681,1720099839804,-500.0,0.00013836,2]
[331128683,1720099839814,-500.0,0.00013836,2]
[331128685,1720099839823,-500.0,0.00013836,2]
[331128687,1720099839833,-1129.31,0.00013836,2]
[331128689,1720099839843,-754.82,0.00013836,2]
[331128691,1720099839853,-1070.38,0.00013836,2]
[331128693,1720099839863,-4931.05,0.00013836,2]
[331128695,1720099839873,-500.0,0.00013836,2]
[331128697,1720099839883,-500.0,0.00013836,2]
[331128699,1720099839893,-579.17802302,0.00013836,2]
[331128701,1720099839903,-500.0,0.00013836,2]
[331128703,1720099839912,-533.25597674,0.00013836,2]
[331128705,1720099839922,-506.88308617,0.00013836,2]
[331128706,1720099839932,-585.96,0.00013836,2]
[331128707,1720099839942,-500.0,0.00013836,2]
[331128708,1720099839952,-500.0,0.00013836,2]
[331128709,1720099839962,-965.48,0.00013836,2]
[331128710,1720099839972,-500.0,0.00013836,2]
[331128711,1720099839989,-500.0,0.00013836,2]
[331128712,1720099840005,-387.46620817,0.00013836,2]
[331128713,1720099840015,-500.0,0.00013836,2]
[331128714,1720099840024,-9689.22,0.00013836,2]
[331128715,1720099840033,-9695.78419846,0.00013837,2]
[331128716,1720099840043,-500.0,0.00013837,2]
[331128717,1720099840056,-500.0,0.00013837,2]
[331128718,1720099840066,-500.0,0.00013837,2]
[331128719,1720099840075,-508.89038591,0.00013837,2]
[331128720,1720099840085,-505.97644375,0.00013837,2]
[331128721,1720099840096,-388.6131425,0.00013837,2]
[331128722,1720099840106,-243.50844289,0.00013837,2]
[331128723,1720099840116,-500.0,0.00013837,2]
[331128724,1720099840127,-500.0,0.00013837,2]
[331128725,1720099840136,-500.0,0.00013837,2]
[331128726,1720099840146,-500.0,0.00013837,2]
[331128727,1720099840156,-500.0,0.00013837,2]
[331128728,1720099840166,-500.0,0.00013837,2]
[331128729,1720099840175,-500.0,0.00013837,2]
[331128730,1720099840185,-502.01806864,0.00013837,2]
[331128731,1720099840195,-500.0,0.00013837,2]
[331128732,1720099840205,-457.48401546,0.00013837,2]
[331128733,1720099840215,-500.0,0.00013837,2]
[331128734,1720099840224,-500.0,0.00013837,2]
[331128735,1720099840237,-500.0,0.00013837,2]
[331128736,1720099840247,-515.53514878,0.00013837,2]
[331128737,1720099840257,-500.0,0.00013837,2]
[331128738,1720099840267,-253.68498323,0.00013837,2]
[331128739,1720099840276,-500.0,0.00013837,2]
[331128740,1720099840286,-503.19946116,0.00013837,2]
[331128741,1720099840295,-500.0,0.00013837,2]
[331128742,1720099840304,-506.80514878,0.00013837,2]
[331128743,1720099840313,-518.95404305,0.00013837,2]
[331128745,1720099840323,-500.0,0.00013837,2]
[331128747,1720099840333,-500.0,0.00013837,2]
[331128749,1720099840344,-500.0,0.00013837,2]
[331128751,1720099840355,-500.0,0.00013837,2]
[331128753,1720099840365,-516.80713987,0.00013837,2]
[331128755,1720099840376,-500.0,0.00013837,2]
[331128757,1720099840387,-500.0,0.00013837,2]
[331128759,1720099840397,-510.29159396,0.00013837,2]
[331128761,1720099840408,-504.81924249,0.00013837,2]
[331128763,1720099840418,-512.4126193,0.00013837,2]
[331128765,1720099840428,-505.11152868,0.00013837,2]
[331128767,1720099840439,-503.56967856,0.00013837,2]
[331128769,1720099840450,-500.0,0.00013837,2]
[331128771,1720099840460,-505.70846594,0.00013837,2]
[331128773,1720099840470,-500.0,0.00013837,2]
[331128775,1720099840489,-500.0,0.00013837,2]
[331128777,1720099840499,-502.23915687,0.00013837,2]
[331128779,1720099840509,-500.0,0.00013837,2]
[331128781,1720099840521,-768.08,0.00013837,2]
[331128783,1720099840531,-500.0,0.00013837,2]
[331128785,1720099840542,-500.0,0.00013837,2]
[331128787,1720099840552,-500.0,0.00013837,2]
[331128789,1720099840563,-505.27918505,0.00013837,2]
[331128791,1720099840574,-670.86,0.00013837,2]
[331128793,1720099840585,-500.0,0.00013837,2]
[331128795,1720099840596,-500.0,0.00013837,2]
[331128797,1720099840606,-206.08793187,0.00013837,2]
[331128799,1720099840617,-500.0,0.00013837,2]
[331128801,1720099840628,-500.0,0.00013837,2]
[331128803,1720099840638,-500.0,0.00013837,2]
[331128805,1720099840649,-500.0,0.00013837,2]
[331128807,1720099840660,-500.0,0.00013837,2]
[331128809,1720099840671,-535.1131884,0.00013837,2]
[331128811,1720099840682,-503.96213452,0.00013837,2]
[331128813,1720099840694,-500.0,0.00013837,2]
[331128815,1720099840704,-500.0,0.00013837,2]
[331128817,1720099840715,-500.0,0.00013837,2]
[331128819,1720099840725,-500.0,0.00013837,2]
[331128820,1720099840745,-500.0,0.00013837,2]
[331128822,1720099840755,-500.0,0.00013837,2]
[331128824,1720099840767,-500.0,0.00013837,2]
[331128826,1720099840777,-500.0,0.00013837,2]
[331128828,1720099840786,-500.0,0.00013837,2]
[331128830,1720099840796,-500.0,0.00013837,2]
[331128832,1720099840806,-500.0,0.00013837,2]
[331128834,1720099840816,-500.0,0.00013837,2]
[331128836,1720099840826,-500.0,0.00013837,2]
[331128861,1720099840962,-500.0,0.00013837,2]
[331128863,1720099840972,-500.0,0.00013837,2]
[331128864,1720099841017,-500.0,0.00013837,2]
[331128866,1720099841031,-500.0,0.00013837,2]
[331128869,1720099841042,-500.0,0.00013837,2]
[331128870,1720099841052,-500.0,0.00013837,2]
[331128872,1720099841062,-500.0,0.00013837,2]
[331128874,1720099841073,-500.0,0.00013837,2]
[331128876,1720099841082,-500.0,0.00013837,2]
[331128878,1720099841094,-500.0,0.00013837,2]
[331128880,1720099841104,-500.0,0.00013837,2]
[331128884,1720099841125,-500.0,0.00013837,2]
[331128886,1720099841136,-500.0,0.00013837,2]
[331128888,1720099841147,-504.30890535,0.00013837,2]
[331128890,1720099841158,-500.0,0.00013837,2]
[331128892,1720099841168,-500.0,0.00013837,2]
[331128894,1720099841180,-500.0,0.00013837,2]
[331128896,1720099841191,-500.0,0.00013837,2]
[331128898,1720099841202,-500.0,0.00013837,2]
[331128900,1720099841213,-500.0,0.00013837,2]
[331128902,1720099841225,-500.0,0.00013837,2]
[331128905,1720099841239,-500.0,0.00013837,2]
[331128907,1720099841249,-500.0,0.00013837,2]
[331128909,1720099841259,-500.0,0.00013837,2]
[331128911,1720099841270,-500.0,0.00013837,2]
[331128913,1720099841280,-843.87,0.00013837,2]
[331128915,1720099841290,-500.0,0.00013837,2]
[331128917,1720099841300,-500.0,0.00013837,2]
[331128919,1720099841311,-500.0,0.00013837,2]
[331128921,1720099841321,-500.0,0.00013837,2]
[331128923,1720099841332,-500.0,0.00013837,2]
[331128925,1720099841342,-500.0,0.00013837,2]
[331128927,1720099841352,-514.9512826,0.00013837,2]
[331128929,1720099841362,-500.0,0.00013837,2]
[331128931,1720099841372,-507.69000949,0.00013837,2]
[331128933,1720099841382,-500.0,0.00013837,2]